bitfinex/quotes_BTCUSD_20241028
["timestamp","ask_amount","ask_price","bid_price","bid_amount"]
[1730113569440,0.002652,68620.0,68619.0,0.53160573]
[1730113569672,0.003652,68620.0,68619.0,0.54560573]
[1730113571698,0.003652,68620.0,68619.0,0.85610954]
[1730113571943,0.003652,68620.0,68619.0,0.63089092]
[1730113572171,0.003652,68620.0,68619.0,0.8635588]
[1730113572396,0.003652,68620.0,68619.0,0.85610954]
[1730113572620,0.003652,68620.0,68619.0,0.9435588]
[1730113573100,0.00218688,68626.0,68625.0,0.157719]
[1730113573338,0.001652,68628.0,68625.0,0.157719]
[1730113573339,0.001652,68628.0,68627.0,0.155715]
[1730113573563,0.001652,68628.0,68627.0,0.44832318]
[1730113574062,0.001652,68628.0,68627.0,0.45032318]
[1730113574737,0.001652,68628.0,68627.0,0.43513618]
[1730113575192,0.001652,68628.0,68627.0,0.42768692]
[1730113575428,0.001652,68628.0,68627.0,0.4276788]
[1730113575665,0.002652,68628.0,68627.0,0.4336788]
[1730113576122,0.003652,68628.0,68627.0,0.4416788]
[1730113576616,0.003652,68628.0,68627.0,0.7844521]
[1730113576832,0.003652,68628.0,68627.0,0.79534113]
[1730113577511,0.003652,68628.0,68627.0,0.90277739]
[1730113577741,0.003652,68628.0,68627.0,1.06197739]
[1730113578614,0.002652,68628.0,68627.0,1.05597739]
[1730113578830,0.001652,68628.0,68627.0,1.04797739]
[1730113579050,0.001652,68630.0,68629.0,0.14771]
[1730113579263,0.001652,68630.0,68629.0,0.54321017]
[1730113579473,0.001652,68630.0,68629.0,0.54029706]
[1730113581369,0.001652,68630.0,68629.0,0.55429706]
[1730113581370,0.002652,68630.0,68629.0,0.55429706]
[1730113581590,0.002652,68630.0,68629.0,0.56729706]
[1730113581811,0.002652,68630.0,68629.0,0.55429706]
[1730113582024,0.001652,68630.0,68629.0,0.55429706]
[1730113582274,0.00437362,68642.0,68641.0,0.147685]
[1730113582503,0.00437362,68642.0,68641.0,0.60713546]
[1730113582747,0.00218616,68642.0,68641.0,0.7756091]
[1730113583203,0.00218616,68642.0,68641.0,0.79390661]
[1730113584145,0.00165,68655.0,68654.0,0.147657]
[1730113584348,0.00165,68655.0,68654.0,0.45369064]
[1730113584612,0.00165,68655.0,68654.0,0.60419445]
[1730113584831,0.00165,68655.0,68654.0,0.61163071]
[1730113585298,0.08245,68655.0,68654.0,0.28774025]
[1730113585521,0.08245,68655.0,68654.0,0.28030399]
[1730113585737,0.08245,68655.0,68654.0,0.29230399]
[1730113585738,0.08683505,68655.0,68654.0,0.29230399]
[1730113585966,0.08683505,68655.0,68654.0,0.28030399]
[1730113586419,0.08683505,68655.0,68654.0,0.29430399]
[1730113586643,0.08683505,68655.0,68654.0,0.2942967]
[1730113586901,0.08783505,68655.0,68654.0,0.3082967]
[1730113587123,0.00265,68655.0,68654.0,0.3082967]
[1730113587357,0.00165,68655.0,68654.0,0.2942967]
[1730113587576,0.00165,68655.0,68654.0,0.2862967]
[1730113588001,0.00165,68655.0,68654.0,0.2932967]
[1730113588246,0.00165,68655.0,68654.0,0.2802967]
[1730113588482,0.00165,68655.0,68654.0,0.29572129]
[1730113588483,0.00265,68655.0,68654.0,0.29572129]
[1730113588917,0.00265,68655.0,68654.0,0.30472129]
[1730113589364,0.00265,68655.0,68654.0,0.29572129]
[1730113589580,0.00165,68655.0,68654.0,0.29572129]
[1730113590014,0.00265,68655.0,68654.0,0.30372129]
[1730113590244,0.00265,68655.0,68654.0,0.29908091]
[1730113590461,0.00165,68655.0,68654.0,0.29572018]
[1730113590943,0.00165,68655.0,68654.0,0.29472018]
[1730113590944,0.00265,68655.0,68654.0,0.29472018]
[1730113591156,0.00265,68655.0,68654.0,0.30172018]
[1730113591375,0.00265,68655.0,68654.0,0.29472018]
[1730113591587,0.00265,68655.0,68654.0,0.29672018]
[1730113591801,0.00265,68655.0,68654.0,0.30272018]
[1730113592908,0.00265,68655.0,68654.0,0.290657]
[1730113593135,0.00265,68655.0,68654.0,0.30272452]
[1730113597167,0.00265,68655.0,68654.0,0.47411117]
[1730113597843,0.00265,68655.0,68654.0,0.47611117]
[1730113598069,0.00265,68655.0,68654.0,0.47411117]
[1730113598284,0.00265,68655.0,68654.0,0.47611117]
[1730113598969,0.00265,68655.0,68654.0,0.47411117]
[1730113600144,0.00265,68655.0,68654.0,0.62461498]
[1730113600359,0.00265,68655.0,68654.0,0.46204365]
[1730113600853,0.381005,68655.0,68654.0,0.145]
[1730113601277,0.38543805,68655.0,68654.0,0.145]
[1730113601908,0.38443805,68655.0,68654.0,0.13]
[1730113602292,0.38543805,68655.0,68654.0,0.134]
[1730113602751,0.38543805,68655.0,68654.0,0.13]
[1730113602979,0.38743805,68655.0,68654.0,0.142105]
[1730113603875,0.38743805,68655.0,68654.0,0.13465535]
[1730113606959,0.38743805,68655.0,68654.0,0.13465919]
[1730113612312,0.24178305,68655.0,68654.0,0.30604584]
[1730113612542,0.38743805,68655.0,68654.0,0.30604584]
[1730113612770,0.38743805,68655.0,68654.0,0.13466125]
[1730113614873,0.23978305,68655.0,68654.0,0.13466125]
[1730113615107,0.08348305,68655.0,68654.0,0.13466125]
[1730113615238,0.08448305,68655.0,68654.0,0.13466125]
[1730113615433,0.08448305,68655.0,68654.0,0.3060479]
[1730113615692,0.08248305,68655.0,68654.0,0.3060479]
[1730113616083,0.08448305,68655.0,68654.0,0.3060479]
[1730113616242,0.23013805,68655.0,68654.0,0.3060479]
[1730113616650,0.22913805,68655.0,68654.0,0.3060479]
[1730113616850,0.23013805,68655.0,68654.0,0.3060479]
[1730113618538,0.23013805,68655.0,68654.0,0.30138665]
[1730113619387,0.08448305,68655.0,68654.0,0.30138665]
[1730113620491,0.23013805,68655.0,68654.0,0.30138665]
[1730113620915,0.08448305,68655.0,68654.0,0.30138665]
[1730113621957,0.08448305,68655.0,68654.0,0.13]
[1730113623026,0.23013805,68655.0,68654.0,0.13]
[1730113624412,0.15473805,68655.0,68654.0,0.13]
[1730113624625,0.00908305,68655.0,68654.0,0.38809769]
[1730113624825,0.00908305,68655.0,68654.0,0.24244069]
[1730113626385,0.15473805,68655.0,68654.0,0.24244069]
[1730113626618,0.15473805,68655.0,68654.0,0.24710566]
[1730113626853,0.15473805,68655.0,68654.0,0.13]
[1730113627522,0.15273805,68655.0,68654.0,0.13]
[1730113627755,0.15173805,68655.0,68654.0,0.13]
[1730113627974,0.15373805,68655.0,68654.0,0.13]
[1730113628204,0.15773805,68655.0,68654.0,0.13]
[1730113629173,0.15573805,68655.0,68654.0,0.13]
[1730113629595,0.15973805,68655.0,68654.0,0.13]
[1730113630948,0.15573805,68655.0,68654.0,0.13]
[1730113631173,0.15573805,68655.0,68654.0,0.13467144]
[1730113631618,0.15573805,68655.0,68654.0,0.13]
[1730113632259,0.15973805,68655.0,68654.0,0.13]
[1730113632468,0.15573805,68655.0,68654.0,0.13]
[1730113632678,0.01008305,68655.0,68654.0,0.143]
[1730113632916,0.00608305,68655.0,68654.0,0.26011301]
[1730113633175,0.15673805,68655.0,68654.0,0.26011301]
[1730113633419,0.01608305,68655.0,68654.0,0.41324544]
[1730113633860,0.01165,68655.0,68654.0,0.41324544]
[1730113634518,0.01165,68655.0,68654.0,0.47212063]
[1730113635165,0.01607289,68655.0,68654.0,0.47212063]
[1730113635381,0.01107289,68655.0,68654.0,0.47212063]
[1730113635817,0.00607289,68655.0,68654.0,0.33046363]
[1730113636271,0.00607289,68655.0,68654.0,0.33446363]
[1730113637467,0.00607289,68655.0,68654.0,0.46712063]
[1730113637921,0.00607289,68655.0,68654.0,0.30931588]
[1730113638134,0.00607289,68655.0,68654.0,0.31398645]
[1730113638561,0.00607289,68655.0,68654.0,0.14267057]
[1730113639759,0.00607289,68655.0,68654.0,0.28832757]
[1730113639958,0.00607289,68655.0,68654.0,0.14267057]
[1730113640808,0.00607289,68655.0,68654.0,0.28832757]
[1730113641012,0.00165,68655.0,68654.0,0.4700303]
[1730113641230,0.00607289,68655.0,68654.0,0.46711749]
[1730113641444,0.00165,68655.0,68654.0,0.46711749]
[1730113641666,0.00606772,68655.0,68654.0,0.46711749]
[1730113641885,0.00606772,68655.0,68654.0,0.4671176]
[1730113642986,0.00606772,68655.0,68654.0,0.3214606]
[1730113643863,0.00606772,68655.0,68654.0,0.29580172]
[1730113644080,0.00825347,68655.0,68654.0,0.15014472]
[1730113644913,0.00825347,68655.0,68654.0,0.16107572]
[1730113645139,0.00825347,68655.0,68654.0,0.30673272]
[1730113645594,0.00383575,68655.0,68654.0,0.30673272]
[1730113645833,0.00383575,68655.0,68654.0,0.30673163]
[1730113646280,0.00825701,68655.0,68654.0,0.30673163]
[1730113646726,0.00165,68655.0,68654.0,0.30673163]
[1730113646936,0.00607126,68655.0,68654.0,0.30673163]
[1730113647142,0.00825701,68655.0,68654.0,0.30673163]
[1730113650651,0.00825701,68655.0,68654.0,0.16107463]
[1730113651124,0.00825701,68655.0,68654.0,0.30673163]
[1730113651328,0.00825701,68655.0,68654.0,0.29580063]
[1730113651538,0.00825701,68655.0,68654.0,0.15014363]
[1730113652654,0.15391201,68655.0,68654.0,0.14267021]
[1730113653064,0.00825701,68655.0,68654.0,0.14267021]
[1730113653273,0.00825701,68655.0,68654.0,0.14266995]
[1730113653485,0.00825701,68655.0,68654.0,0.138]
[1730113653716,0.00825701,68655.0,68654.0,0.14266989]
[1730113654662,0.15391201,68655.0,68654.0,0.14266989]
[1730113655102,0.00825701,68655.0,68654.0,0.28832689]
[1730113655313,0.00825701,68655.0,68654.0,0.14266989]
[1730113656637,0.15391201,68655.0,68654.0,0.14266989]
[1730113657067,0.00825701,68655.0,68654.0,0.14266989]
[1730113657558,0.15391201,68655.0,68654.0,0.14266989]
[1730113659341,0.00825701,68655.0,68654.0,0.14266989]
[1730113659550,0.00825701,68655.0,68654.0,0.15360301]
[1730113660448,0.00825701,68655.0,68654.0,0.16108362]
[1730113661102,0.15391201,68655.0,68654.0,0.16108362]
[1730113661569,0.15391201,68655.0,68654.0,0.15015532]
[1730113661787,0.15391201,68655.0,68654.0,0.138]
[1730113662012,0.15391201,68655.0,68654.0,0.15015682]
[1730113662238,0.15391201,68655.0,68654.0,0.14267528]
[1730113662917,0.00825701,68655.0,68654.0,0.14267528]
[1730113663377,0.15391201,68655.0,68654.0,0.14267528]
[1730113664747,0.15391201,68655.0,68654.0,0.13867528]
[1730113664960,0.15391201,68655.0,68654.0,0.13467528]
[1730113665461,0.15391201,68655.0,68654.0,0.13]
[1730113665678,0.15391201,68655.0,68654.0,0.13767576]
[1730113665893,0.15391201,68655.0,68654.0,0.13867576]
[1730113667490,0.15391201,68655.0,68654.0,0.13467576]
[1730113671056,0.64471582,68655.0,68654.0,0.13467576]
[1730113671291,0.97855656,68655.0,68654.0,0.13]
[1730113671512,1.02226829,68655.0,68654.0,0.13]
[1730113671735,0.97855656,68655.0,68654.0,0.13]
[1730113671974,0.86611582,68655.0,68654.0,0.13]
[1730113672211,0.87011582,68655.0,68654.0,0.13]
[1730113672429,0.90979867,68655.0,68654.0,0.13]
[1730113672914,0.91779867,68655.0,68654.0,0.131]
[1730113673597,0.87411582,68655.0,68654.0,0.131]
[1730113674245,0.88211582,68655.0,68654.0,0.132]
[1730113674674,0.90493884,68655.0,68654.0,0.132]
[1730113676274,0.78353884,68655.0,68654.0,0.132]
[1730113676506,0.52853884,68655.0,68654.0,0.132]
[1730113677190,0.53353884,68655.0,68654.0,0.132]
[1730113682834,0.45823884,68655.0,68654.0,0.132]
[1730113683049,0.30273503,68655.0,68654.0,0.132]
[1730113691137,0.45823884,68655.0,68654.0,0.132]
[1730113691396,0.55663884,68655.0,68654.0,0.132]
[1730113691627,0.63501582,68655.0,68654.0,0.132]
[1730113694753,0.62701582,68655.0,68654.0,0.13]
[1730113694977,0.61901582,68655.0,68654.0,0.13]
[1730113695213,0.62901582,68655.0,68654.0,0.131]
[1730113695858,0.65183917,68655.0,68654.0,0.131]
[1730113696130,0.66183917,68655.0,68654.0,0.131]
[1730113702487,0.63901582,68655.0,68654.0,0.131]
[1730113705318,0.66183917,68655.0,68654.0,0.131]
[1730113707096,0.56063917,68655.0,68654.0,0.131]
[1730113715081,0.48523917,68655.0,68654.0,0.131]
[1730113724855,0.5289202,68655.0,68654.0,0.131]
[1730113726173,0.46223917,68655.0,68654.0,0.2295]
[1730113727077,0.45223917,68655.0,68654.0,0.2295]
[1730113727332,0.45523917,68655.0,68654.0,0.2295]
[1730113728219,0.44523917,68655.0,68654.0,0.2285]
[1730113728628,0.44923917,68655.0,68654.0,0.2285]
[1730113729057,0.45323917,68655.0,68654.0,0.2285]
[1730113737253,0.45323917,68655.0,68654.0,0.13]
[1730113737911,0.55683917,68655.0,68654.0,0.13]
[1730113738164,0.60053193,68655.0,68654.0,0.13]
[1730113738382,0.62237831,68655.0,68654.0,0.13]
[1730113738612,0.55683917,68655.0,68654.0,0.13]
[1730113739516,0.54583917,68655.0,68654.0,0.13]
[1730113739744,0.72434298,68655.0,68654.0,0.132]
[1730113739988,1.79409617,68655.0,68654.0,0.132]
[1730113740234,1.51989882,68655.0,68654.0,0.132]
[1730113740442,1.03279882,68655.0,68654.0,0.132]
[1730113740916,0.76074282,68655.0,68654.0,0.132]
[1730113741128,0.65711582,68655.0,68654.0,0.132]
[1730113742034,0.65711582,68655.0,68654.0,0.12357953]
[1730113744471,0.67994137,68655.0,68654.0,0.12357953]
[1730113745555,0.73698555,68655.0,68654.0,0.12357953]
[1730113747105,0.72298555,68655.0,68654.0,0.12257953]
[1730113747311,0.72298555,68655.0,68654.0,0.12157953]
[1730113747528,0.73698555,68655.0,68654.0,0.12257953]
[1730113747744,1.31840455,68655.0,68654.0,0.12257953]
[1730113747900,1.30440455,68655.0,68654.0,0.12157953]
[1730113748097,1.31840455,68655.0,68654.0,0.12257953]
[1730113748521,1.30440455,68655.0,68654.0,0.12257953]
[1730113748749,1.24736037,68655.0,68654.0,0.12257953]
[1730113748950,1.01288037,68655.0,68654.0,0.12257953]
[1730113750341,1.12197373,68655.0,68654.0,0.12257953]
[1730113758161,1.01288037,68655.0,68654.0,0.12257953]
[1730113761700,1.01288037,68655.0,68654.0,0.12340253]
[1730113761936,1.10797373,68655.0,68654.0,0.12340253]
[1730113762180,0.66594137,68655.0,68654.0,0.12340253]
[1730113762461,1.07216737,68655.0,68654.0,0.12340253]
[1730113762671,1.04539881,68655.0,68654.0,0.12340253]
[1730113762875,0.87106737,68655.0,68654.0,0.12340253]
[1730113763093,0.85706737,68655.0,68654.0,0.12240253]
[1730113763336,0.95829876,68655.0,68654.0,0.12340253]
[1730113763552,0.95829876,68655.0,68654.0,0.12240253]
[1730113763763,0.93795776,68655.0,68654.0,0.12240253]
[1730113763991,0.93795776,68655.0,68654.0,0.12340253]
[1730113764428,0.95195776,68655.0,68654.0,0.12340253]
[1730113765827,0.68007276,68655.0,68654.0,0.12340253]
[1730113766063,0.73424137,68655.0,68654.0,0.12340253]
[1730113766969,0.73405566,68655.0,68654.0,0.12340253]
[1730113767407,0.72005566,68655.0,68654.0,0.12340253]
[1730113767625,0.75005566,68655.0,68654.0,0.12440253]
[1730113767843,0.72205566,68655.0,68654.0,0.12340253]
[1730113768050,0.71986991,68655.0,68654.0,0.12340253]
[1730113768259,0.72905639,68655.0,68654.0,0.12440253]
[1730113769822,0.70623084,68655.0,68654.0,0.12440253]
[1730113772950,0.72905497,68655.0,68654.0,0.12440253]
[1730113774240,0.70623084,68655.0,68654.0,0.12440253]
[1730113779312,0.7498523,68655.0,68654.0,0.12440253]
[1730113780997,0.81867158,68655.0,68654.0,0.12440253]
[1730113781223,0.9059145,68655.0,68654.0,0.12440253]
[1730113781443,0.81629846,68655.0,68654.0,0.12440253]
[1730113782522,0.72905554,68655.0,68654.0,0.12440253]
[1730113783632,0.81636492,68655.0,68654.0,0.12440253]
[1730113784320,0.72905554,68655.0,68654.0,0.12440253]
[1730113785472,0.72205554,68655.0,68654.0,0.12340253]
[1730113785930,0.73305554,68655.0,68654.0,0.12440253]
[1730113786841,0.72605554,68655.0,68654.0,0.12340253]
[1730113787057,0.73305554,68655.0,68654.0,0.12340253]
[1730113787511,0.72605554,68655.0,68654.0,0.12340253]
[1730113787966,0.73705554,68655.0,68654.0,0.12340253]
[1730113792219,0.73705554,68655.0,68654.0,0.22410253]
[1730113792387,0.73705554,68655.0,68654.0,0.23644278]
[1730113792599,0.69123084,68655.0,68654.0,0.23644278]
[1730113792797,0.68023084,68655.0,68654.0,0.23644278]
[1730113793015,0.66923084,68655.0,68654.0,0.23544278]
[1730113793216,0.67423084,68655.0,68654.0,0.23544278]
[1730113793418,0.58723084,68655.0,68654.0,0.23644278]
[1730113793699,0.57723084,68655.0,68654.0,0.23644278]
[1730113794193,0.42972703,68655.0,68654.0,0.23644278]
[1730113794376,0.42972703,68655.0,68654.0,0.31754278]
[1730113794599,0.51672703,68655.0,68654.0,0.31754278]
[1730113794808,0.52172703,68655.0,68654.0,0.31754278]
[1730113795496,0.37607203,68655.0,68654.0,0.31754278]
[1730113795714,0.37607203,68655.0,68654.0,0.31654278]
[1730113795715,0.5365489,68655.0,68654.0,0.31654278]
[1730113795933,0.5415489,68655.0,68654.0,0.31654278]
[1730113796147,0.5365489,68655.0,68654.0,0.31654278]
[1730113796824,0.1408939,68655.0,68654.0,0.31654278]
[1730113797476,0.2865489,68655.0,68654.0,0.31654278]
[1730113798148,0.2865489,68655.0,68654.0,0.31854278]
[1730113798368,0.1358939,68655.0,68654.0,0.31854278]
[1730113798586,0.2865489,68655.0,68654.0,0.31854278]
[1730113798804,0.2815489,68655.0,68654.0,0.31854278]
[1730113798997,0.2815489,68655.0,68654.0,0.32154278]
[1730113799862,0.25872703,68655.0,68654.0,0.32154278]
[1730113800082,0.15872703,68655.0,68654.0,0.32154278]
[1730113800324,0.11307203,68655.0,68654.0,0.32154278]
[1730113800575,0.25872703,68655.0,68654.0,0.32154278]
[1730113800792,0.25872703,68655.0,68654.0,0.30920253]
[1730113802822,0.2815489,68655.0,68654.0,0.30920253]
[1730113806931,0.2815489,68655.0,68654.0,0.30620253]
[1730113807193,0.2815489,68655.0,68654.0,0.30420253]
[1730113807376,0.2815489,68655.0,68654.0,0.30520253]
[1730113807377,0.0358939,68655.0,68654.0,0.30520253]
[1730113807833,0.0358939,68655.0,68654.0,0.30420253]
[1730113808317,0.0358939,68655.0,68654.0,0.30820253]
[1730113808544,0.2815489,68655.0,68654.0,0.30820253]
[1730113809204,0.2815489,68655.0,68654.0,0.30520253]
[1730113809423,0.2815489,68655.0,68654.0,0.30720253]
[1730113810951,0.0358939,68655.0,68654.0,0.30720253]
[1730113811188,0.2815489,68655.0,68654.0,0.30720253]
[1730113812086,0.25872703,68655.0,68654.0,0.30720253]
[1730113813477,0.00807203,68655.0,68654.0,0.56530027]
[1730113813690,0.00807203,68655.0,68654.0,0.56996603]
[1730113813917,0.00365077,68655.0,68654.0,0.56996603]
[1730113814139,0.00365077,68655.0,68654.0,0.57743203]
[1730113814361,0.00365077,68655.0,68654.0,0.57196603]
[1730113814571,0.00365077,68655.0,68654.0,0.57943203]
[1730113814777,0.00365077,68655.0,68654.0,0.57096603]
[1730113814995,0.00365077,68655.0,68654.0,0.57843203]
[1730113815213,0.00365077,68655.0,68654.0,0.62007715]
[1730113815439,0.00365077,68655.0,68654.0,0.57643203]
[1730113815660,0.00465077,68655.0,68654.0,0.62607715]
[1730113816119,0.00565077,68655.0,68654.0,0.62807715]
[1730113816334,0.00565077,68655.0,68654.0,0.58443203]
[1730113816771,0.00565077,68655.0,68654.0,0.62807715]
[1730113817011,0.00565077,68655.0,68654.0,0.58443203]
[1730113817491,0.00565077,68655.0,68654.0,0.62803904]
[1730113817738,0.00565077,68655.0,68654.0,0.58443203]
[1730113818399,0.00565077,68655.0,68654.0,0.58442259]
[1730113818628,0.00565077,68655.0,68654.0,0.62801741]
[1730113819062,0.00565077,68655.0,68654.0,0.77852122]
[1730113819518,0.00565077,68655.0,68654.0,0.7785207]
[1730113820153,0.00565077,68655.0,68654.0,0.89096144]
[1730113820378,0.001646,68656.0,68655.0,0.326055]
[1730113820599,0.001646,68659.0,68658.0,0.55093048]
[1730113820836,0.001646,68659.0,68658.0,0.83355661]
[1730113821064,0.001646,68659.0,68658.0,0.87712819]
[1730113821488,0.001646,68659.0,68658.0,0.83355661]
[1730113822133,0.001646,68659.0,68658.0,0.87712461]
[1730113822364,0.002646,68659.0,68658.0,0.84155303]
[1730113823220,0.003646,68659.0,68658.0,0.84455303]
[1730113823448,0.0014823,68667.0,68666.0,0.145632]
[1730113823722,0.0014823,68667.0,68666.0,0.59397412]
[1730113825860,0.0034823,68667.0,68666.0,0.59397412]
[1730113826320,0.0034823,68667.0,68666.0,0.59397006]
[1730113826525,0.0034823,68667.0,68666.0,0.59797006]
[1730113826526,0.0044823,68667.0,68666.0,0.59797006]
[1730113826744,0.0044823,68667.0,68666.0,0.59796939]
[1730113826966,0.0044823,68667.0,68666.0,0.59996939]
[1730113827170,0.003,68667.0,68666.0,0.59996939]
[1730113828033,0.004,68667.0,68666.0,0.61096939]
[1730113828474,0.006,68667.0,68666.0,0.61096939]
[1730113829166,0.006823,68667.0,68666.0,0.61096939]
[1730113829386,0.006823,68667.0,68666.0,0.60896939]
[1730113829802,0.006823,68667.0,68666.0,0.379432]
[1730113830027,0.006823,68667.0,68666.0,0.60896832]
[1730113831568,0.006823,68667.0,68666.0,0.61096832]
[1730113832017,0.006823,68667.0,68666.0,0.68896832]
[1730113832237,0.006823,68667.0,68666.0,0.83947213]
[1730113833784,0.006823,68667.0,68666.0,0.8394718]
[1730113836471,0.002,68673.0,68672.0,0.54540048]
[1730113836682,0.002,68673.0,68672.0,0.71811806]
[1730113836894,0.002,68673.0,68672.0,0.72011806]
[1730113837783,0.003,68673.0,68672.0,0.7241181]
[1730113838050,0.004,68673.0,68672.0,0.7311181]
[1730113838884,0.004,68673.0,68672.0,0.7291181]
[1730113839094,0.004,68673.0,68672.0,0.7311181]
[1730113839581,0.004,68673.0,68672.0,0.61867736]
[1730113842000,0.004823,68673.0,68672.0,0.61867736]
[1730113842227,0.004823,68673.0,68672.0,0.61667736]
[1730113842641,0.004823,68673.0,68672.0,0.61867736]
[1730113844715,0.004823,68673.0,68672.0,0.61667736]
[1730113844930,0.004823,68673.0,68672.0,0.7311181]
[1730113845411,0.004823,68673.0,68672.0,0.39078139]
[1730113845653,0.004823,68673.0,68672.0,0.29128139]
[1730113849081,0.004823,68673.0,68672.0,0.286619]
[1730113849292,0.004823,68673.0,68672.0,0.29128289]
[1730113849754,0.004823,68673.0,68672.0,0.29128348]
[1730113850623,0.004823,68673.0,68672.0,0.29419551]
[1730113852987,0.004823,68673.0,68672.0,0.29128448]
[1730113854458,0.004823,68673.0,68672.0,0.29419649]
[1730113854677,0.004823,68673.0,68672.0,0.39149649]
[1730113854912,0.004823,68673.0,68672.0,0.38858448]
[1730113855342,0.004823,68673.0,68672.0,0.60726728]
[1730113855557,0.004823,68673.0,68672.0,0.39058448]
[1730113857670,0.004823,68673.0,68672.0,0.38858448]
[1730113860430,0.004823,68673.0,68672.0,0.29128448]
[1730113860634,0.004823,68673.0,68672.0,0.40372522]
[1730113863214,0.004823,68673.0,68672.0,0.40372712]
[1730113863966,0.004823,68673.0,68672.0,0.49892712]
[1730113870273,0.004823,68673.0,68672.0,0.50092712]
[1730113870691,0.004823,68673.0,68672.0,0.49625974]
[1730113870826,0.004823,68673.0,68672.0,0.49892803]
[1730113871044,0.004823,68673.0,68672.0,0.56642263]
[1730113871237,0.004823,68673.0,68672.0,0.72760643]
[1730113871445,0.004823,68673.0,68672.0,0.72560671]
[1730113872305,0.004823,68673.0,68672.0,0.74743824]
[1730113872496,0.004823,68673.0,68672.0,0.66011211]
[1730113873087,0.004823,68673.0,68672.0,0.7474445]
[1730113873353,0.004823,68673.0,68672.0,0.66011211]
[1730113874000,0.004823,68673.0,68672.0,0.68850473]
[1730113874208,0.004823,68673.0,68672.0,0.7976624]
[1730113874645,0.001646,68678.0,68677.0,0.37249048]
[1730113874950,0.001646,68678.0,68677.0,0.85010944]
[1730113875039,0.001646,68678.0,68677.0,0.88317063]
[1730113875255,0.001646,68678.0,68677.0,1.02643928]
[1730113875901,0.002646,68678.0,68677.0,1.03143928]
[1730113876149,0.002646,68678.0,68677.0,1.14060823]
[1730113876391,0.002646,68678.0,68677.0,1.12313585]
[1730113876819,0.002646,68678.0,68677.0,1.12113585]
[1730113877516,0.003646,68678.0,68677.0,1.05504111]
[1730113877976,0.003646,68678.0,68677.0,0.83343373]
[1730113878451,0.003646,68678.0,68677.0,0.95679137]
[1730113878662,0.003646,68678.0,68677.0,0.83343039]
[1730113879301,0.003646,68678.0,68677.0,0.8508954]
[1730113879731,0.003646,68678.0,68677.0,0.96333614]
[1730113880415,0.003646,68678.0,68677.0,0.82577417]
[1730113880631,0.003646,68678.0,68677.0,1.05065565]
[1730113880848,0.003646,68678.0,68677.0,0.93821491]
[1730113881507,0.003646,68678.0,68677.0,0.92074806]
[1730113885718,0.003646,68678.0,68677.0,0.91607967]
[1730113885925,0.003646,68678.0,68677.0,0.92074758]
[1730113886312,0.003646,68678.0,68677.0,1.03318832]
[1730113886953,0.003646,68678.0,68677.0,0.92074758]
[1730113887166,0.003646,68678.0,68677.0,1.03310727]
[1730113887818,0.001652,68681.0,68680.0,0.147602]
[1730113888069,0.00165,68689.0,68688.0,0.36192574]
[1730113888300,0.00165,68689.0,68688.0,0.53557006]
[1730113888516,0.00165,68689.0,68688.0,0.55115183]
[1730113889460,0.00165,68689.0,68688.0,0.65801132]
[1730113889677,0.00165,68689.0,68688.0,0.70163834]
[1730113889911,0.00165,68689.0,68688.0,1.00495793]
[1730113889912,0.00265,68689.0,68688.0,1.00495793]
[1730113890132,0.00265,68689.0,68688.0,1.05460226]
[1730113890133,0.00365,68689.0,68688.0,1.05460226]
[1730113890429,0.00365,68689.0,68688.0,0.94549144]
[1730113890877,0.00265,68689.0,68688.0,0.93749144]
[1730113891101,0.00165,68689.0,68688.0,0.93149144]
[1730113891326,0.00365,68689.0,68688.0,0.95849144]
[1730113891549,0.00365,68689.0,68688.0,1.06748836]
[1730113891773,0.00265,68689.0,68688.0,1.05448836]
[1730113892220,0.00365,68689.0,68688.0,0.96149144]
[1730113892442,0.00365,68689.0,68688.0,1.07045986]
[1730113892907,0.00365,68689.0,68688.0,1.05645986]
[1730113893134,0.00265,68689.0,68688.0,1.05445986]
[1730113893362,0.00265,68689.0,68688.0,0.95482353]
[1730113893580,0.00265,68689.0,68688.0,0.9505708]
[1730113893810,0.00265,68689.0,68688.0,0.96146958]
[1730113894033,0.00265,68689.0,68688.0,0.95946958]
[1730113894298,0.00265,68689.0,68688.0,0.94390967]
[1730113894521,0.00265,68689.0,68688.0,0.94856999]
[1730113894942,0.00265,68689.0,68688.0,0.95056999]
[1730113895402,0.00265,68689.0,68688.0,1.04860267]
[1730113896270,0.00265,68689.0,68688.0,0.96125433]
[1730113897187,0.00265,68689.0,68688.0,1.04838285]
[1730113897410,0.00265,68689.0,68688.0,1.04838113]
[1730113897859,0.00265,68689.0,68688.0,0.96125261]
[1730113898347,0.00265,68689.0,68688.0,1.07017238]
[1730113898566,0.00165,68697.0,68696.0,0.37044948]
[1730113898803,0.00165,68697.0,68696.0,0.49510808]
[1730113899885,0.00165,68697.0,68696.0,0.50710808]
[1730113900309,0.00265,68697.0,68696.0,0.51810808]
[1730113902096,0.18355,68697.0,68696.0,0.1476586]
[1730113902321,0.18355,68697.0,68696.0,0.288568]
[1730113902530,0.19017147,68697.0,68696.0,0.288568]
[1730113903176,0.19017147,68697.0,68696.0,0.143]
[1730113903609,0.33573747,68697.0,68696.0,0.143]
[1730113904032,0.49624128,68697.0,68696.0,0.143]
[1730113904249,0.5318519,68697.0,68696.0,0.132]
[1730113904432,0.5368519,68697.0,68696.0,0.132]
[1730113904707,0.5368519,68697.0,68696.0,0.133]
[1730113905147,0.5368519,68697.0,68696.0,0.132]
[1730113905887,0.5368519,68697.0,68696.0,0.12]
[1730113906788,0.5388519,68697.0,68696.0,0.121]
[1730113907003,0.52524128,68697.0,68696.0,0.121]
[1730113907220,0.53024128,68697.0,68696.0,0.122]
[1730113908352,0.52524128,68697.0,68696.0,0.122]
[1730113908571,0.19617147,68697.0,68696.0,0.38000874]
[1730113908798,0.09612147,68697.0,68696.0,0.38000874]
[1730113909710,0.0895,68697.0,68696.0,0.38000874]
[1730113909920,0.01660532,68697.0,68696.0,0.49244948]
[1730113910147,0.01,68697.0,68696.0,0.38000874]
[1730113910370,0.01,68697.0,68696.0,0.38466772]
[1730113910588,0.01,68697.0,68696.0,0.44333761]
[1730113911448,0.01,68697.0,68696.0,0.44333812]
[1730113912760,0.01,68697.0,68696.0,0.43867863]
[1730113912976,0.01,68697.0,68696.0,0.44333847]
[1730113913509,0.01,68697.0,68696.0,0.44498447]
[1730113913600,0.010823,68697.0,68696.0,0.44498447]
[1730113914928,0.002823,68697.0,68696.0,0.44398447]